Workbook

Sheet Ganztagsrechner
D6: BASS 11-11 Nr.1 §7 Vo zu §93 | J6: §5 Vo zu §93 | N6: §2 Abs.(5) | Y6: Stellen und Stellenanteile berechnen | AF6: Kapitalisierung ab 1.8.2022
Y7: Stunden | AC7: Schulform | AF7: Stelle | AK7: Kapitalisierungssumme
E8: Schülerzahl: | G8: 740 | H8: Schulform | J8: Leitungszeitstunden | N8: Anrechnungsstunden | Y8: 110 | Z8: =0.039215686 -> 0.039215686 | AA8: =Z8*Y8 -> 4.31372546 | AB8: GY SEK GE | AF8: 3,6 | AK8: =AK11*AF8 -> 197136
D9: §8 VO zu §93 | E9: Schüler/Lehrer Relation: | G9: 19,87 | H9: GY-Sek I | J9: 9 WS+0,7 pro Stelle bis zur 50.Stelle | N9: 0.4 | Q9: =G20*N9 -> 17.77936588 | AA9: Stellen
F10: Grundstellen | G10: =G8/G9 -> 37.24207348 | N10: neu: 0,4 pro Stelle | P10: Summe | Q10: =ROUND(Q9,0) -> 18 | Y10: =AA10*25.5 -> 51 | AA10: 2 | AE10: Schülerzahl | AF10: 0 | AK10: =AK11*AF10 -> 0
N11: 1 | AF11: 501-700 Schüler | AK11: 54760,00
G12: =ROUND(G10/0.5,0)*0.5 -> 37 | H12: auf halbe Stelle gerundet | N12: 2 | Y12: =AA12*25.5 -> 35.7 | AA12: 1.4 | AF12: bis 3,6 Stellen Kap.
E13: SchülerInnen | F13: 740 | G13: =F13/$G$9*0.2 -> 7.448414696 | H13: 20% | J13: LZ inkl. GT | K13: =($G$15*0.7+9) -> 40.11389029 | N13: 3 | AF13: bei 54760,00€ pro Lehrerstelle
E14: im Ganztag | H14: Zuschl. | I14: =ROUND(I12,0) -> 0 | J14: gerundet | K14: =ROUND(K13,0) -> 40 | N14: 4
E15: Summe Stellen | G15: =SUM(G12+G13) -> 44.4484147 | J15: §5 (2) zusätzl. 2 Std. | K15: 0 | N15: 5 | Y15: =SUM(Y10:Y12) -> 86.7 | Z15: Summe | AA15: =SUM(AA10,AA12) -> 3.4 | AK15: =SUM(AK8:AK12) -> 197136
D16: §9 VO zu §93 | E16: sonst. Stellen-Zuschläge | G16: 0 | J16: 10.2.3. AVO-RL zusätzl. 1 Std. | K16: 1 | N16: 6 | AC16: Schüler | AD16: Stellen | AE16: Betrag
G17: 0 | N17: 7 | AB17: 1 | AC17: <300 | AD17: -2.2 | AE17: 112300 | AF17: 5104.5 | AG17: pro 0,1 | AK17: Lehrerstelle
G18: 0 | N18: 8 | AB18: 2 | AC18: 301-500 | AD18: -2.9 | AE18: 149800 | AF18: 5165.5 | AG18: pro 0,1 | AK18: Lehrerstelle
G19: 0 | N19: 9 | Y19: Stunden | Z19: GY GE SEK | AA19: Stellen | AB19: 3 | AC19: 501-700 | AD19: -3.6 | AE19: 187200 | AF19: 5200 | AG19: pro 0,1 | AK19: Lehrerstelle
E20: Stellen insges. | G20: =SUM(G15:G19) -> 44.4484147 | J20: Summe LZ | K20: =SUM($K$14:$K$19) -> 41 | N20: 10 | Y20: 25.5 | Z20: =0.039215686 -> 0.039215686 | AA20: =Z20*Y20 -> 0.999999993 | AB20: 4 | AC20: >700 | AD20: -4.3 | AE20: 224600 | AF20: 5223.55 | AG20: pro 0,1 | AK20: Lehrerstelle
N21: 11 | Y21: 0 | Z21: =0.039215686 -> 0.039215686 | AA21: =Z21*Y21 -> 0
J22: Schulleiterin | N22: 12 | Y22: 0 | Z22: =0.039215686 -> 0.039215686 | AA22: 0
J23: Schulleiter/in | K23: 25.5 | N23: 13 | Y23: 0 | Z23: =0.039215686 -> 0.039215686 | AA23: 0
K24: 0 | L24: ermäß. | N24: 14 | Y24: 0 | Z24: =0.039215686 -> 0.039215686 | AA24: 0
K25: 0 | L25: ermäß. | N25: 15 | Y25: 0 | Z25: =0.039215686 -> 0.039215686 | AA25: 0
K26: 0 | L26: ermäß. | N26: 16 | Y26: 0 | Z26: =0.039215686 -> 0.039215686 | AA26: 0
K27: 0 | N27: 17 | Y27: 0 | Z27: =0.039215686 -> 0.039215686 | AA27: 0
K28: =SUM(K24:K27) -> 0 | N28: 18
K29: =K23-K28 -> 25.5 | L29: Summe | N29: 19 | Y29: =SUM(Y20:Y27) -> 25.5 | AA29: =SUM(AA20:AA27) -> 0.999999993
J30: Konrektor | N30: 20
J31: Stellvertr. Schulleiter/in | K31: 25.5 | N31: 21
K32: 7 | L32: ermäß. | N32: 22
K33: 1 | L33: ermäß. | N33: 23
K34: 0 | L34: ermäß. | N34: 24
K35: =SUM(K32:K34) -> 8 | N35: 25
J36: 2. Konrektor | K36: =K31-K35 -> 17.5 | L36: Summe | N36: 26
J37: N.N. | K37: 25.5 | N37: 27
E38: Schüler-Lehrerrelationen | G38: alt | H38: neu | K38: 0 | L38: ermäß. | N38: 28
E39: Grundschule | G39: 23.42 | H39: 21.95 | K39: 0 | L39: ermäß. | N39: 29
E40: Hauptschule | G40: 17.86 | H40: 17.86 | K40: =SUM(K38:K39) -> 0 | N40: 30
E41: Realschule | G41: 20.94 | H41: 20.19 | K41: =K37-K40 -> 25.5 | L41: Summe | N41: 31
E42: Sekundarschule | G42: 16.27 | H42: 16.27 | L42: % | N42: 32
N43: 33
E44: Gymnasium | F44: SekI* | G44: 19.88 | H44: 19.87 | J44: SL % | K44: =K20*L44/100 -> 26.65 | L44: 65 | N44: 34
F45: SekII | G45: 13.41 | H45: 12.7 | J45: Kon % | K45: =K20*L45/100 -> 14.35 | L45: 35 | N45: 35
E46: Gesamtschule | F46: SekI | G46: 19.32 | H46: 18.63 | J46: 2.Kon % | K46: =K20*L46/100 -> 0 | L46: 0 | N46: 36
F47: SekII | G47: 13.19 | H47: 12.7 | J47: Rektor Std. | K47: =K29-K44 -> -1.15 | N47: 37
J48: Konrektor Std. | K48: =K36-K45 -> 3.15 | N48: 38
F49: * Sek I G8 19,17 | J49: 2. Konrektor Std. | K49: =K41-K46 -> 25.5 | N49: 39
L50: =IF(L51=100,"","Fehler in der Summe der SL-Ermäßigung! Der Wert der SL-Ermäßigung entspricht nicht 100 %!") ->  | Q50: =IF(Q51=Q10,"",IF(Q51<Q10,AN51,IF(Q51>Q10,AN50,))) -> es können noch Anrechnungsstunden vergeben werden | AN50: es wurden zu viele Anrechnungsstunden an die KollegInnen vergeben!
L51: =SUM(L44:L46) -> 100 | Q51: =SUM(Q11:Q49) -> 0 | AN51: es können noch Anrechnungsstunden vergeben werden

Sheet Rhythmisierungsrechner
C8: Berechnung nach Stunden
E9: Stelle
E10: =$D$12*$E$12 -> 0.999999993 | G10: Gymnasium | H10: SEK GY GE
C11: Minuten | E11: Wochenstunden | G11: Rest-Minuten | I11: Min/Woche | J11: Stunden/Woche
C12: 45 | D12: 0,039215686 | E12: 25.5 | I12: =C12*E12 -> 1147.5 | J12: =TIME(0,$I$12,0) -> 0.7965277778
C13: 67.5 | D13: =C13/1440 -> 01:07:30 | E13: =INT(I12/C13) -> 17 | F13: =MOD(I12/C13,1) -> 0 | G13: =F13*C13 -> 0 | H13: =TIME(0,G13,0) -> 0
C14: 45 | D14: =C14/1440 -> 00:45:00 | E14: =INT(I12/C14) -> 25 | F14: =MOD(I12/C14,1) -> 0.5 | G14: =F14*C14 -> 22.5 | H14: =TIME(0,G14,0) -> 0.01527777778
E15: Einheiten/Woche | G15: Restminuten | H15: Restzeit
C17: Berechnung nach Stellen
E18: 25.5 | H18: =IF(E18=25.5,"GY SEK GE","RS HS GS") -> GY SEK GE
C19: Minuten | E19: Wochenstunden | H19: Stelle | I19: Min/Woche | J19: Stunden/Woche
C20: 45 | D20: =1/28 -> 0.03571428571 | E20: =H20*E18 -> 25.5 | H20: 1 | I20: =C20*E20 -> 1147.5 | J20: =TIME(0,$I$20,0) -> 0.7965277778
C21: 67.5 | D21: =C21/1440 -> 01:07:30 | E21: =INT(I20/C21) -> 17 | F21: =MOD(I20/C21,1) -> 0 | G21: =F21*C21 -> 0 | H21: =TIME(0,G21,0) -> 0
C22: 45 | D22: =C22/1440 -> 00:45:00 | E22: =INT(I20/C22) -> 25 | F22: =MOD(I20/C22,1) -> 0.5 | G22: =F22*C22 -> 22.5 | H22: =TIME(0,G22,0) -> 0.01527777778
E23: Einheiten/Woche | H23: Restzeit
B30: 1. Grundschule 28
B31: 2. Hauptschule 28
B32: 3. Realschule 28
B33: 4. Gemeinschaftsschule 25,5
B34: 5. Sekundarschule 25,5
B35: 6. Gymnasium 25,5
B36: 7. Gesamtschule 25,5
B37: 8. Berufskolleg 25,5
B38: 9. Förderschule 27,5
B39: 10. Schule für Kranke 27,5
B40: 11. Weiterbildungskolleg
B41: a) Abendrealschule 25
B42: b) Abendgymnasium 22
B43: c) Kolleg (Institut zur Erlangung der Hochschulreife) 22
B44: 12. Studienkolleg für ausländische Studierende 22

Sheet Zeitraster
E2: Std. | F2: Min
D3: Start Uhrzeit | E3: 8 | F3: 0 | I3: 12 | J3: =E7/1440 -> 00:05:00
E4: Minuten | I4: 23 | J4: 00:15:00
D5: Einheiten/Stunden zu | E5: 45 | I5: 34 | J5: 00:05:00
D6: Pausenzeit zwischen | I6: 45 | J6: 00:15:00
D7: 1. und 2. | E7: 5 | I7: 56 | J7: 00:05:00
D8: 2. und 3. | E8: 15 | I8: 67 | J8: 01:00:00
D9: 3. und 4. | E9: 5 | I9: 78 | J9: 00:05:00
D10: 4. und 5. | E10: 15 | I10: 89 | J10: 00:10:00
D11: 5. und 6. | E11: 5 | I11: 910 | J11: 00:00:00
D12: 6. und 7. | E12: 60 | I12: 1011 | J12: =E16/1440 -> 00:10:00
D13: 7. und 8. | E13: 5 | I13: 1112 | J13: 00:00:00
D14: 8. und 9. | E14: 10 | I14: 1213 | J14: 00:10:00
D15: 9.und 10. | E15: 0 | I15: 1314 | J15: 00:00:00
D16: 10. und 11. | E16: 10 | I16: 1415 | J16: 00:10:00
D17: 11. und 12. | E17: 0 | I17: 1516 | J17: =E21/1440 -> 00:00:00
D18: 12. und 13. | E18: 10
D19: 13. und 14. | E19: 0
D20: 14. und 15. | E20: 10
D21: 15. und 16. | E21: 0
I22: Rhythmus | J22: =E5/1440 -> 00:45:00 | K22: Einheit (Std./Min.)
D23: 1 | E23: =TIME($E$3,$F$3,0) -> 08:00:00 | F23: =E23+$J$22 -> 08:45:00 | I23: Pausen zwischen Std.
D24: 2 | E24: =F23+J3 -> 08:50:00 | F24: =E24+$J$22 -> 09:35:00 | I24: 1. große Pause | J24: =E13/1440 -> 00:05:00
E25: =J4 -> 00:15:00 | F25: =IF(E8=0,"",IF(AND(E8<60,E8>0),"Minuten",IF(E8>=60,"Stunde"))) -> Minuten | I25: 2. große Pause | J25: =E14/1440 -> 00:10:00
D26: 3 | E26: =F24+E25 -> 09:50:00 | F26: =E26+$J$22 -> 10:35:00 | I26: Mittagspause | J26: =E15/1440 -> 00:00:00
D27: 4 | E27: =F26+J5 -> 10:40:00 | F27: =E27+J22 -> 11:25:00 | I27: 3. Pause | J27: =E16/1440 -> 00:10:00
E28: =J6 -> 00:15:00 | F28: =IF(E10=0,"",IF(AND(E10<60,E10>0),"Minuten",IF(E10>=60,"Stunde"))) -> Minuten | I28: 4. Pause | J28: =E17/1440 -> 00:00:00
D29: 5 | E29: =F27+E28 -> 11:40:00 | F29: =E29+J22 -> 12:25:00
D30: 6 | E30: =F29+J7 -> 12:30:00 | F30: =E30+J22 -> 13:15:00
E31: =J8 -> 01:00:00 | F31: =IF(E12=0,"",IF(AND(E12<60,E12>0),"Minuten",IF(E12>=60,"Stunde"))) -> Stunde
D32: 7 | E32: =F30+E31 -> 14:15:00 | F32: =E32+J22 -> 15:00:00
D33: 8 | E33: =F32+J9 -> 15:05:00 | F33: =E33+$J$22 -> 15:50:00
E34: =J10 -> 00:10:00 | F34: =IF(E14=0,"",IF(AND(E14<60,E14>0),"Minuten",IF(E14>=60,"Stunde"))) -> Minuten
D35: 9 | E35: =F33+J10 -> 16:00:00 | F35: =E35+$J$22 -> 16:45:00
D36: 10 | E36: =F35+J11 -> 16:45:00 | F36: =E36+$J$22 -> 17:30:00
E37: =J12 -> 00:10:00 | F37: =IF(E16=0,"",IF(AND(E16<60,E16>0),"Minuten",IF(E16>=60,"Stunde"))) -> Minuten
D38: 11 | E38: =F36+J12 -> 17:40:00 | F38: =E38+$J$22 -> 18:25:00
D39: 12 | E39: =F38+J13 -> 18:25:00 | F39: =E39+$J$22 -> 19:10:00
E40: =J14 -> 00:10:00 | F40: =IF(E18=0,"",IF(AND(E18<60,E18>0),"Minuten",IF(E18>=60,"Stunde"))) -> Minuten
D41: 13 | E41: =F39+J14 -> 19:20:00 | F41: =E41+$J$22 -> 20:05:00
D42: 14 | E42: =F41+J15 -> 20:05:00 | F42: =E42+$J$22 -> 20:50:00
E43: =J16 -> 00:10:00 | F43: =IF(E20=0,"",IF(AND(E20<60,E20>0),"Minuten",IF(E20>=60,"Stunde"))) -> Minuten
D44: 15 | E44: =F42+J16 -> 21:00:00 | F44: =E44+$J$22 -> 21:45:00
D45: 16 | E45: =F44+J17 -> 21:45:00 | F45: =E45+$J$22 -> 22:30:00

Sheet Zeiten
D6: Stand: | E6: =NOW() -> 2024-03-15T12:10:49.410 | M6: =NOW() -> 2024-03-15T12:10:49.410 | T6: =NOW() -> 2024-03-15T12:10:49.410
E7: Name | F7: Vorname | M7: Name | N7: Vorname | T7: Name | U7: Vorname
B8: 1 | C8: =Zeitraster!E23 -> 0.3333333333 | D8: =Zeitraster!F23 -> 0.3645833333 | J8: 1 | K8: =C8 -> 0.3333333333 | L8: =D8 -> 0.3645833333 | Q8: 1 | R8: =C8 -> 0.3333333333 | S8: =D8 -> 0.3645833333
B9: 2 | C9: =Zeitraster!E24 -> 0.3680555556 | D9: =Zeitraster!F24 -> 0.3993055556 | J9: 2 | K9: =C9 -> 0.3680555556 | L9: =D9 -> 0.3993055556 | Q9: 2 | R9: =C9 -> 0.3680555556 | S9: =D9 -> 0.3993055556
C10: =Zeitraster!E25 -> 0.01041666667 | D10: =Zeitraster!F25 -> Minuten | K10: 0.01041666667 | L10: Minuten | R10: 0.01041666667 | S10: Minuten
B11: 3 | C11: =Zeitraster!E26 -> 0.4097222222 | D11: =Zeitraster!F26 -> 0.4409722222 | J11: 3 | K11: 0.4097222222 | L11: 0.4409722222 | Q11: 3 | R11: 0.4097222222 | S11: 0.4409722222
B12: 4 | C12: =Zeitraster!E27 -> 0.4444444444 | D12: =Zeitraster!F27 -> 0.4756944444 | J12: 4 | K12: 0.4444444444 | L12: 0.4756944444 | Q12: 4 | R12: 0.4444444444 | S12: 0.4756944444
C13: =Zeitraster!E28 -> 0.01041666667 | D13: =Zeitraster!F28 -> Minuten | K13: 0.01041666667 | L13: Minuten | R13: 0.01041666667 | S13: Minuten
B14: 5 | C14: =Zeitraster!E29 -> 0.4861111111 | D14: =Zeitraster!F29 -> 0.5173611111 | J14: 5 | K14: 0.4861111111 | L14: 0.5173611111 | Q14: 5 | R14: 0.4861111111 | S14: 0.5173611111
B15: 6 | C15: =Zeitraster!E30 -> 0.5208333333 | D15: =Zeitraster!F30 -> 0.5520833333 | J15: 6 | K15: 0.5208333333 | L15: 0.5520833333 | Q15: 6 | R15: 0.5208333333 | S15: 0.5520833333
C16: =Zeitraster!E31 -> 0.04166666667 | D16: =Zeitraster!F31 -> Stunde | K16: 0.04166666667 | L16: Stunde | R16: 0.04166666667 | S16: Stunde
B17: 7 | C17: =Zeitraster!E32 -> 0.59375 | D17: =Zeitraster!F32 -> 0.625 | J17: 7 | K17: 0.59375 | L17: 0.625 | Q17: 7 | R17: 0.59375 | S17: 0.625
B18: 8 | C18: =Zeitraster!E33 -> 0.6284722222 | D18: =Zeitraster!F33 -> 0.6597222222 | J18: 8 | K18: 0.6284722222 | L18: 0.6597222222 | Q18: 8 | R18: 0.6284722222 | S18: 0.6597222222
C19: =Zeitraster!E34 -> 0.006944444444 | D19: =Zeitraster!F34 -> Minuten | K19: 0.006944444444 | L19: Minuten | R19: 0.006944444444 | S19: Minuten
B20: 9 | C20: =Zeitraster!E35 -> 0.6666666667 | D20: =Zeitraster!F35 -> 0.6979166667 | J20: 9 | K20: 0.6666666667 | L20: 0.6979166667 | Q20: 9 | R20: 0.6666666667 | S20: 0.6979166667
B21: 10 | C21: =Zeitraster!E36 -> 0.6979166667 | D21: =Zeitraster!F36 -> 0.7291666667 | J21: 10 | K21: 0.6979166667 | L21: 0.7291666667 | Q21: 10 | R21: 0.6979166667 | S21: 0.7291666667
C22: =Zeitraster!E37 -> 0.006944444444 | D22: =Zeitraster!F37 -> Minuten | K22: 0.006944444444 | L22: Minuten | R22: 0.006944444444 | S22: Minuten
B23: 11 | C23: =Zeitraster!E38 -> 0.7361111111 | D23: =Zeitraster!F38 -> 0.7673611111 | J23: 11 | K23: 0.7361111111 | L23: 0.7673611111 | Q23: 11 | R23: 0.7361111111 | S23: 0.7673611111
B24: 12 | C24: =Zeitraster!E39 -> 0.7673611111 | D24: =Zeitraster!F39 -> 0.7986111111 | J24: 12 | K24: 0.7673611111 | L24: 0.7986111111 | Q24: 12 | R24: 0.7673611111 | S24: 0.7986111111
C25: =Zeitraster!E40 -> 0.006944444444 | D25: =Zeitraster!F40 -> Minuten | K25: 0.006944444444 | L25: Minuten | R25: 0.006944444444 | S25: Minuten
B26: 13 | C26: =Zeitraster!E41 -> 0.8055555556 | D26: =Zeitraster!F41 -> 0.8368055556 | J26: 13 | K26: 0.8055555556 | L26: 0.8368055556 | Q26: 13 | R26: 0.8055555556 | S26: 0.8368055556
B27: 14 | C27: =Zeitraster!E42 -> 0.8368055556 | D27: =Zeitraster!F42 -> 0.8680555556 | J27: 14 | K27: 0.8368055556 | L27: 0.8680555556 | Q27: 14 | R27: 0.8368055556 | S27: 0.8680555556
C28: =Zeitraster!E43 -> 0.006944444444 | D28: =Zeitraster!F43 -> Minuten | K28: 0.006944444444 | L28: Minuten | R28: 0.006944444444 | S28: Minuten
B29: 15 | C29: =Zeitraster!E44 -> 0.875 | D29: =Zeitraster!F44 -> 0.90625 | J29: 15 | K29: 0.875 | L29: 0.90625 | Q29: 15 | R29: 0.875 | S29: 0.90625
B30: 16 | C30: =Zeitraster!E45 -> 0.90625 | D30: =Zeitraster!F45 -> 0.9375 | J30: 16 | K30: 0.90625 | L30: 0.9375 | Q30: 16 | R30: 0.90625 | S30: 0.9375
C31: =Zeitraster!E46 -> 0 | R31: 0 | S31: 0
C32: =Zeitraster!E47 -> 0 | R32: 0 | S32: 0
C33: =Zeitraster!E48 -> 0
C34: =Zeitraster!E49 -> 0
